bitfinex/quotes_SOLUSD_20240925
["timestamp","ask_amount","ask_price","bid_price","bid_amount"]
[1727244394016,16.59,150.7,150.62,23.014]
[1727244394341,6.637,150.67,150.62,23.014]
[1727244395530,23.776884,150.72,150.63,20.0]
[1727244395737,6.6362,150.69,150.64,16.4115]
[1727244395922,6.6366,150.68,150.64,16.4115]
[1727244397238,6.6371,150.67,150.64,16.4115]
[1727244399945,6.6366,150.68,150.64,16.4115]
[1727244404645,6.6366,150.68,150.65,1.32734923]
[1727244405760,6.6366,150.68,150.64,16.4115]
[1727244406625,6.6366,150.68,150.65,1.32739045]
[1727244406949,6.6366,150.68,150.64,16.4115]
[1727244407527,6.6366,150.68,150.65,1.32738886]
[1727244411458,6.6366,150.68,150.64,16.4115]
[1727244411753,23.776884,150.7,150.64,16.4115]
[1727244411933,6.6379,150.65,150.64,16.4115]
[1727244412324,6.6375,150.66,150.64,16.4115]
[1727244421646,23.776884,150.7,150.64,16.4115]
[1727244421852,6.6379,150.65,150.64,16.4115]
[1727244424663,6.6375,150.66,150.64,16.4115]
[1727244428363,6.6379,150.65,150.64,16.4115]
[1727244429768,16.5889,150.71,150.64,16.4115]
[1727244430260,6.6375,150.66,150.64,16.4115]
[1727244430465,16.5889,150.71,150.6,35.1989]
[1727244430658,6.6379,150.65,150.6,35.1989]
[1727244434377,6.6393,150.62,150.6,15.1989]
[1727244434662,6.6392,150.62,150.6,15.1989]
[1727244435876,6.6388,150.63,150.6,15.1989]
[1727244445472,23.776884,150.66,150.58,0.2436319]
[1727244445473,6.6404,150.6,150.58,0.2436319]
[1727244445861,6.6405,150.59,150.58,0.2436319]
[1727244453059,23.776884,150.63,150.58,0.2436319]
[1727244453369,6.6387,150.64,150.58,0.2436319]
[1727244455057,6.6387,150.64,150.58,20.2436319]
[1727244455673,6.6377,150.66,150.6,20.0]
[1727244455876,6.6371,150.67,150.6,20.0]
[1727244459881,6.6378,150.66,150.6,20.0]
[1727244461956,6.637,150.67,150.61,15.3658]
[1727244463187,22.9654,150.71,150.61,15.3658]
[1727244463371,6.6387,150.64,150.61,15.3658]
[1727244463777,40.367884,150.69,150.61,15.3658]
[1727244463778,6.6392,150.63,150.61,15.3658]
[1727244463970,6.6387,150.64,150.58,0.2436319]
[1727244464775,6.6388,150.63,150.58,0.2436319]
[1727244465572,6.6388,150.63,150.58,1.57163891]
[1727244466102,6.6388,150.63,150.58,0.2436319]
[1727244471277,23.776884,150.69,150.58,0.2436319]
[1727244471482,6.6394,150.62,150.58,0.2436319]
[1727244473193,6.6394,150.62,150.58,1.57163512]
[1727244473793,23.776884,150.66,150.58,1.57163512]
[1727244473986,6.6388,150.63,150.58,0.2436319]
[1727244474486,6.6388,150.63,150.58,1.57163438]
[1727244474994,6.6385,150.64,150.59,1.32797397]
[1727244475288,6.6379,150.65,150.59,1.32797397]
[1727244475498,6.6379,150.65,150.58,11.08031441]
[1727244480200,23.776884,150.69,150.58,11.08031441]
[1727244480495,6.6383,150.64,150.58,11.08031441]
[1727244483018,6.6378,150.66,150.6,26.26258251]
[1727244483208,6.6378,150.66,150.61,7.66585123]
[1727244484382,6.6371,150.67,150.61,7.66585123]
[1727244484791,33.1707,150.74,150.62,47.24348251]
[1727244485109,6.6352,150.72,150.66,16.4068]
[1727244485394,6.6344,150.73,150.67,7.47112668]
[1727244486798,6.6344,150.73,150.67,6.144]
[1727244488881,6.634,150.74,150.68,10.83668251]
[1727244490095,6.9503984,150.75,150.68,10.83668251]
[1727244490301,0.3168984,150.75,150.72,10.83668251]
[1727244490474,0.3168984,150.75,150.74,16.4068]
[1727244490678,0.3168984,150.75,150.74,33.38748251]
[1727244493677,0.1076389,150.76,150.75,20.0]
[1727244493897,0.1076389,150.76,150.75,21.32633025]
[1727244494897,0.1076389,150.76,150.75,20.0]
[1727244498286,0.1076389,150.76,150.75,21.32642996]
[1727244498686,0.1076389,150.76,150.75,20.0]
[1727244499105,0.1076389,150.76,150.74,33.38748251]
[1727244499106,0.1076389,150.76,150.74,16.4068]
[1727244502298,6.7407389,150.76,150.74,16.4068]
[1727244503216,0.1076389,150.76,150.74,16.4068]
[1727244504009,6.7407389,150.76,150.74,16.4068]
[1727244504194,0.1076389,150.76,150.74,16.4068]
[1727244504396,6.7406389,150.76,150.74,16.4068]
[1727244505205,0.1076389,150.76,150.74,16.4068]
[1727244507117,6.7406389,150.76,150.74,16.4068]
[1727244507816,0.1076389,150.76,150.74,16.4068]
[1727244509708,6.7406389,150.76,150.74,16.4068]
[1727244511831,0.1076389,150.76,150.74,16.4068]
[1727244512004,0.1076389,150.76,150.75,1.32663723]
[1727244512205,0.1076389,150.76,150.74,16.4068]
[1727244517833,6.6345,150.73,150.7,22.1514]
[1727244518027,6.6344,150.73,150.7,15.8183]
[1727244518241,6.6339,150.74,150.7,15.8183]
[1727244523819,0.1076389,150.76,150.7,15.8183]
[1727244524017,6.6348,150.72,150.7,15.8183]
[1727244524316,6.6344,150.73,150.7,15.8183]
[1727244526644,6.6349,150.72,150.7,15.8183]
[1727244527137,0.1076389,150.76,150.71,1.3269924]
[1727244527317,6.634,150.74,150.71,1.3269924]
[1727244530841,6.6335,150.75,150.7,15.8183]
[1727244532037,6.6342,150.74,150.7,15.8183]
[1727244532718,6.6344,150.73,150.7,15.8183]
[1727244535240,6.6344,150.73,150.71,1.32689012]
[1727244535811,6.6348,150.72,150.67,20.0]
[1727244536016,6.6353,150.71,150.67,20.0]
[1727244536556,25.43564599,150.75,150.67,20.0]
[1727244536845,6.6366,150.68,150.66,15.5893]
[1727244537040,6.637,150.67,150.62,22.2814319]
[1727244537428,6.6366,150.68,150.62,22.2814319]
[1727244537630,6.6362,150.69,150.62,22.2814319]
[1727244538833,6.6362,150.69,150.63,1.32731341]
[1727244539238,6.6362,150.69,150.62,22.2814319]
[1727244539422,6.6362,150.69,150.62,33.11811441]
[1727244539620,6.6362,150.69,150.63,20.0]
[1727244539841,6.6373,150.67,150.63,20.0]
[1727244540030,23.776884,150.71,150.63,20.0]
[1727244540234,6.6367,150.68,150.63,20.0]
[1727244540426,23.776884,150.72,150.63,20.0]
[1727244540627,6.6361,150.69,150.63,20.0]
[1727244541427,6.6372,150.67,150.62,22.2814319]
[1727244541641,23.776884,150.72,150.62,22.2814319]
[1727244541829,6.6375,150.66,150.62,15.8329319]
[1727244542537,6.6366,150.68,150.63,1.32757141]
[1727244542745,6.6357,150.7,150.64,1.32738763]
[1727244543133,23.776884,150.72,150.63,10.83668251]
[1727244543467,6.6362,150.69,150.63,10.83668251]
[1727244543831,6.6362,150.69,150.62,15.8329319]
[1727244546550,6.6366,150.68,150.62,15.8329319]
[1727244547135,23.0442389,150.76,150.65,10.83668251]
[1727244547334,6.6352,150.71,150.67,15.1943]
[1727244547533,6.6352,150.71,150.68,1.32710674]
[1727244548554,6.6349,150.72,150.68,1.32710674]
[1727244550137,23.776884,150.75,150.67,15.1943]
[1727244550356,6.6344,150.73,150.68,1.32702396]
[1727244550657,6.6344,150.73,150.67,26.03098251]
[1727244551025,23.776884,150.75,150.67,26.03098251]
[1727244551225,6.6348,150.72,150.67,26.03098251]
[1727244551859,6.6344,150.73,150.67,26.03098251]
[1727244552058,6.6348,150.72,150.67,26.03098251]
[1727244553354,1.65879775,150.74,150.67,15.1943]
[1727244553559,6.6353,150.71,150.67,15.1943]
[1727244553761,6.6349,150.72,150.67,15.1943]
[1727244558668,6.6349,150.72,150.67,26.03098251]
[1727244558962,6.6344,150.73,150.67,26.03098251]
[1727244559159,6.6339,150.74,150.69,10.83668251]
[1727244559461,6.6339,150.74,150.7,1.32685948]
[1727244559661,6.6339,150.74,150.69,10.83668251]
[1727244560468,6.6343,150.73,150.68,26.3214]
[1727244567773,0.1076389,150.76,150.67,15.1943]
[1727244568075,1.76653496,150.76,150.67,15.1943]
[1727244568263,6.6362,150.69,150.67,15.1943]
[1727244569958,6.6357,150.7,150.67,15.1943]
[1727244576283,1.65899376,150.69,150.63,16.3346]
[1727244576573,6.637,150.67,150.63,16.3346]
[1727244577775,6.637,150.67,150.62,0.2436319]
[1727244577776,6.5956,150.69,150.62,0.2436319]
[1727244578071,23.776884,150.68,150.62,0.2436319]
[1727244578280,6.6387,150.63,150.62,0.2436319]
[1727244579877,6.6384,150.64,150.62,0.2436319]
[1727244580378,6.6379,150.65,150.62,0.2436319]
[1727244580577,1.65960248,150.67,150.62,0.2436319]
[1727244581479,6.6386,150.64,150.62,0.2436319]
[1727244582778,56.354,150.73,150.62,0.2436319]
[1727244582963,0.1076389,150.76,150.64,20.0]
[1727244583161,6.6348,150.72,150.65,1.32720004]
[1727244583364,6.6344,150.73,150.66,10.83668251]
[1727244583558,6.6344,150.73,150.67,16.3346]
[1727244584549,6.6344,150.73,150.67,46.3346]
[1727244584948,23.8845229,150.76,150.67,46.3346]
[1727244585176,6.6339,150.74,150.68,12.16372052]
[1727244585378,6.6339,150.74,150.68,10.83668251]
[1727244585699,6.6339,150.74,150.68,40.83668251]
[1727244585882,6.6339,150.74,150.68,10.83668251]
[1727244586189,6.6344,150.73,150.67,22.8522]
[1727244586475,6.6357,150.7,150.67,16.3346]
[1727244586783,6.6363,150.69,150.67,16.3346]
[1727244586956,6.6356,150.71,150.67,16.3346]
[1727244587280,6.6348,150.72,150.67,16.3346]
[1727244588371,0.1076389,150.76,150.68,12.16381138]
[1727244588578,6.634,150.74,150.68,10.83668251]
[1727244588789,6.6335,150.75,150.68,10.83668251]
[1727244588957,6.6335,150.75,150.69,6.5176]
[1727244591392,1.65849288,150.74,150.69,6.5176]
[1727244591687,0.1076389,150.76,150.69,6.5176]
[1727244592585,6.6335,150.75,150.69,6.5176]
[1727244592885,0.1076389,150.76,150.69,6.5176]
[1727244593070,6.7407389,150.76,150.69,36.5176]
[1727244594065,8.29239295,150.75,150.69,36.5176]
[1727244594579,6.6339,150.74,150.69,36.5176]
[1727244594785,1.65849295,150.75,150.69,36.5176]
[1727244594973,6.6346,150.73,150.69,6.5176]
[1727244595174,6.634,150.74,150.69,6.5176]
[1727244596594,6.6344,150.73,150.69,6.5176]
[1727244596798,0.1076389,150.76,150.68,20.0]
[1727244597376,6.6352,150.72,150.68,20.0]
[1727244597580,6.6352,150.72,150.67,16.3346]
[1727244598798,6.6343,150.73,150.67,16.3346]
[1727244599098,6.6343,150.73,150.67,27.17128251]
[1727244601688,6.6343,150.73,150.67,16.3346]
[1727244601893,6.6348,150.72,150.67,16.3346]
[1727244602282,6.6344,150.73,150.67,16.3346]
[1727244603377,6.6344,150.73,150.68,1.32704718]
[1727244604494,6.6344,150.73,150.67,16.3346]
[1727244604810,6.6353,150.71,150.67,17.66164981]
[1727244605023,6.6353,150.71,150.67,16.3346]
[1727244605691,6.6365,150.68,150.67,16.3346]
[1727244605896,6.6361,150.69,150.67,16.3346]
[1727244606083,6.6361,150.7,150.67,16.3346]
[1727244607014,6.6361,150.69,150.67,16.3346]
[1727244607681,23.776884,150.74,150.67,16.3346]
[1727244609008,23.776884,150.74,150.68,1.32719985]
[1727244609205,6.6348,150.72,150.68,1.32719985]
[1727244611207,6.6339,150.74,150.68,7.56659985]
[1727244611386,6.6339,150.74,150.68,6.2394]
[1727244611589,6.6344,150.73,150.68,6.2394]
[1727244612895,6.634,150.74,150.68,6.2394]
[1727244614506,0.1076389,150.76,150.69,32.16355508]
[1727244614819,0.1076389,150.76,150.73,10.83668251]
[1727244614998,0.1076389,150.76,150.74,21.4477]
[1727244617309,0.1076389,150.76,150.74,22.7742484]
[1727244617998,0.1076389,150.76,150.74,15.2083]
[1727244620492,6.7407389,150.76,150.74,15.2083]
[1727244624523,6.6334,150.75,150.74,15.2083]
[1727244625914,6.7407389,150.76,150.74,15.2083]
[1727244631414,0.1076389,150.76,150.74,15.2083]
[1727244631620,0.1076389,150.76,150.7,6.2394]
[1727244631621,0.1076389,150.76,150.7,16.1666]
[1727244631811,1.76634502,150.76,150.7,16.1666]
[1727244632133,6.6348,150.72,150.7,16.1666]
[1727244634317,1.76634502,150.76,150.7,16.1666]
[1727244634517,6.6344,150.73,150.7,16.1666]
[1727244635043,0.1076389,150.76,150.7,16.1666]
[1727244635044,6.6339,150.74,150.7,16.1666]
[1727244635247,6.6335,150.75,150.7,16.1666]
[1727244635412,6.6335,150.75,150.71,1.32684598]
[1727244636011,6.6335,150.75,150.7,27.00328251]
[1727244636215,0.1076389,150.76,150.72,10.83668251]
[1727244636519,0.1076389,150.76,150.73,1.32661763]
[1727244640043,0.1076389,150.76,150.74,10.83668251]
[1727244640834,0.1076389,150.76,150.72,17.11568251]
[1727244641517,0.1076389,150.76,150.72,6.279]
[1727244641718,0.1076389,150.76,150.73,1.32655627]
[1727244642027,0.1076389,150.76,150.72,6.279]
[1727244642926,0.1076389,150.76,150.73,12.16315009]
[1727244643328,0.1076389,150.76,150.73,10.83668251]
[1727244643726,0.1076389,150.76,150.74,1.32642181]
[1727244644421,0.1076389,150.76,150.73,10.83668251]
[1727244646538,0.1076389,150.76,150.72,6.279]
[1727244647841,0.1076389,150.76,150.73,10.83668251]
[1727244651454,0.1076389,150.76,150.72,17.11568251]
[1727244651655,0.1076389,150.76,150.73,20.0]
[1727244654033,0.1076389,150.76,150.72,20.0]
[1727244654352,0.1076389,150.76,150.73,1.32660262]
[1727244655030,0.1076389,150.76,150.71,20.0]
[1727244656349,6.7406389,150.76,150.71,20.0]
[1727244658154,6.6335,150.75,150.71,21.32689347]
[1727244659034,6.6335,150.75,150.71,20.0]
[1727244659237,6.6335,150.75,150.69,20.0]
[1727244659942,6.6335,150.75,150.7,1.32687497]
[1727244660252,6.6335,150.75,150.69,20.0]
[1727244660792,6.6335,150.75,150.67,20.0]
[1727244661055,6.6335,150.75,150.69,20.0]
[1727244662857,6.7406389,150.76,150.69,20.0]
[1727244663747,0.1076389,150.76,150.7,10.83668251]
[1727244663950,6.7406389,150.76,150.69,10.83668251]
[1727244664255,0.1076389,150.76,150.7,20.0]
[1727244664871,6.7407389,150.76,150.7,20.0]
[1727244665362,6.6335,150.75,150.67,30.83668251]
[1727244666453,6.6335,150.75,150.67,20.0]
[1727244667149,6.6344,150.73,150.66,23.14271171]
[1727244667366,6.6344,150.73,150.66,16.2211]
[1727244667367,1.65893458,150.72,150.66,16.2211]
[1727244668270,6.6352,150.72,150.64,6.92296023]
[1727244668451,6.6352,150.72,150.65,21.32725325]
[1727244668966,13.1743,150.74,150.64,6.92296023]
[1727244669167,6.6352,150.71,150.64,6.92296023]
[1727244669351,23.776884,150.73,150.64,6.92296023]
[1727244669352,6.6362,150.69,150.64,6.92296023]
[1727244669551,6.6362,150.69,150.62,15.3577319]
[1727244669881,23.776884,150.73,150.63,1.32749853]
[1727244670053,6.6357,150.7,150.63,1.32749853]
[1727244670253,6.6357,150.7,150.62,15.3577319]
[1727244670457,6.0993,150.69,150.62,0.2436319]
[1727244670762,6.0993,150.69,150.62,11.08031441]
[1727244671149,29.876184,150.73,150.64,10.83668251]
[1727244671350,6.6348,150.72,150.65,21.32723605]
[1727244671583,6.6353,150.71,150.65,21.32723605]
[1727244671877,6.6353,150.71,150.65,20.0]
[1727244673653,29.876184,150.73,150.65,20.0]
[1727244673854,53.1141,150.77,150.64,10.83668251]
[1727244673855,6.0993,150.77,150.68,10.83668251]
[1727244674086,6.0993,150.77,150.69,21.32694682]
[1727244674265,6.6335,150.75,150.69,20.0]
[1727244674966,1.65867331,150.74,150.66,23.776884]
[1727244675278,1.65867331,150.74,150.68,20.0]
[1727244675454,6.6335,150.75,150.68,20.0]
[1727244675869,6.6335,150.75,150.69,1.32694337]
[1727244676161,6.6343,150.74,150.68,20.0]
[1727244676466,23.8845229,150.76,150.65,20.0]
[1727244677177,23.8845229,150.76,150.66,1.32721712]
[1727244677370,6.6349,150.72,150.66,1.32721712]
[1727244678451,23.8845229,150.76,150.66,1.32721712]
[1727244678676,6.6343,150.74,150.66,12.16389963]
[1727244678879,6.6343,150.74,150.67,20.0]
[1727244679476,23.8845229,150.76,150.67,20.0]
[1727244679677,6.634,150.74,150.67,20.0]
[1727244679880,6.6344,150.73,150.66,10.83668251]
[1727244680063,6.6339,150.74,150.67,20.0]
[1727244680770,6.6339,150.74,150.65,20.0]
[1727244680977,6.6339,150.74,150.67,10.83668251]
[1727244681689,6.6339,150.74,150.65,20.0]
[1727244681988,6.6339,150.74,150.67,20.0]
[1727244686376,6.6344,150.73,150.67,20.0]
[1727244686992,6.6344,150.73,150.67,20.83991925]
[1727244687318,0.1076389,150.76,150.69,20.0]
[1727244687595,6.7406389,150.76,150.7,1.32685134]
[1727244688372,6.7406389,150.76,150.69,20.0]
[1727244688881,6.7406389,150.76,150.7,1.32685413]
[1727244689085,1.76613933,150.76,150.69,36.429]
[1727244689269,6.7408389,150.76,150.69,36.429]
[1727244691669,0.1076389,150.76,150.69,36.429]
[1727244691874,0.1076389,150.76,150.71,20.0]
[1727244692177,0.1076389,150.76,150.72,1.32667119]
[1727244693295,0.1076389,150.76,150.72,12.1633537]
[1727244695369,0.1076389,150.76,150.7,20.0]
[1727244695694,0.1076389,150.76,150.72,20.0]
[1727244699386,8.39898883,150.76,150.7,20.0]
[1727244699579,1.76598883,150.76,150.7,20.0]
[1727244699781,6.6339,150.74,150.7,20.0]
[1727244700475,0.1076389,150.76,150.7,20.0]
[1727244700672,6.6345,150.73,150.7,20.0]
[1727244701478,6.6348,150.72,150.69,16.429]
[1727244703004,23.776884,150.75,150.69,16.429]
[1727244703210,6.6357,150.7,150.67,20.0]
[1727244703801,6.6357,150.7,150.66,20.0]
[1727244704008,6.6344,150.73,150.67,12.16384753]
[1727244704816,6.6344,150.73,150.67,10.83668251]
[1727244706390,6.6344,150.73,150.68,20.0]
[1727244707210,6.6349,150.72,150.68,20.0]
[1727244707406,6.6349,150.72,150.66,20.0]
[1727244709510,6.6349,150.72,150.67,10.83668251]
[1727244709706,6.6349,150.72,150.68,20.0]
[1727244710015,1.65874771,150.71,150.66,20.0]
[1727244710186,6.6365,150.69,150.66,20.0]
[1727244710388,6.6367,150.68,150.65,16.1205]
[1727244710585,6.6367,150.68,150.57,1.63941728]
[1727244710784,18.24575428,150.73,150.61,22.93142269]
[1727244711007,6.6371,150.67,150.62,0.2436319]
[1727244711908,23.776884,150.72,150.62,20.2436319]
[1727244712112,6.6366,150.68,150.62,20.2436319]
[1727244712413,6.6366,150.68,150.63,10.83668251]
[1727244712604,6.6361,150.69,150.64,20.0]
[1727244718813,6.6361,150.69,150.62,20.2436319]
[1727244719011,6.6361,150.69,150.62,31.08031441]
[1727244722510,6.637,150.67,150.62,31.08031441]
[1727244722814,6.6375,150.66,150.62,20.2436319]
[1727244723120,6.638,150.65,150.62,0.2436319]
[1727244724012,6.6374,150.67,150.62,1.57124086]
[1727244725117,6.499,150.7,150.62,1.57124086]
[1727244725299,6.6362,150.69,150.62,20.2436319]
[1727244726316,6.6362,150.69,150.63,10.83668251]
[1727244727824,6.6357,150.7,150.64,1.32734049]
[1727244728024,6.6361,150.69,150.63,10.83668251]
[1727244729319,1.65914549,150.68,150.62,20.2436319]
[1727244729496,6.6374,150.66,150.62,20.2436319]
[1727244729822,6.6374,150.66,150.62,0.2436319]
[1727244729823,6.6375,150.66,150.62,0.2436319]
[1727244734523,1.65953485,150.69,150.62,0.2436319]
[1727244734727,6.6379,150.65,150.62,0.2436319]
[1727244735328,6.6387,150.63,150.62,0.2436319]
[1727244737708,30.415584,150.63,150.62,0.2436319]
[1727244740306,36.800684,150.63,150.62,0.2436319]
[1727244740630,38.46111877,150.63,150.62,0.2436319]
[1727244740808,6.6405,150.59,150.58,0.2436319]
[1727244741124,30.417384,150.59,150.58,0.2436319]
[1727244743611,6.6431,150.53,150.52,0.3168984]
[1727244744032,30.419984,150.53,150.52,0.3168984]
[1727244744647,6.6431,150.53,150.52,0.3168984]
[1727244745310,30.419984,150.53,150.52,0.3168984]
[1727244746216,6.6431,150.53,150.52,0.3168984]
[1727244747110,6.6426,150.55,150.52,0.3168984]
[1727244747639,6.6428,150.54,150.52,0.3168984]
[1727244749428,16.6006,150.6,150.52,0.3168984]
[1727244749612,6.643,150.54,150.52,0.3168984]
[1727244750132,6.6422,150.56,150.52,0.3168984]
[1727244751420,16.6006,150.6,150.52,0.3168984]
[1727244751632,6.6409,150.58,150.52,11.15358091]
[1727244751830,6.6414,150.57,150.52,6.9604984]
[1727244752237,6.6414,150.57,150.52,0.3168984]
[1727244758126,16.5967,150.64,150.52,0.3168984]
[1727244758446,6.6414,150.58,150.52,6.9604984]
[1727244759645,6.6414,150.58,150.53,6.6429]
[1727244759941,6.6414,150.58,150.53,6.643]
[1727244760845,6.6414,150.58,150.52,11.15358091]
[1727244761044,6.6414,150.58,150.52,17.79708091]
[1727244761548,8.30203936,150.57,150.52,6.9603984]
[1727244761723,6.6415,150.57,150.52,0.3168984]
[1727244762644,6.6425,150.55,150.52,0.3168984]
[1727244762948,1.66083273,150.54,150.52,0.3168984]
[1727244764224,6.6425,150.55,150.52,0.3168984]
[1727244764741,1.66093087,150.54,150.52,0.3168984]
[1727244765537,6.6428,150.54,150.52,0.3168984]
[1727244765880,1.66095764,150.53,150.52,0.3168984]
[1727244766328,6.6428,150.54,150.52,0.3168984]
[1727244767731,1.66093284,150.53,150.52,0.3168984]
[1727244768553,8.30403284,150.53,150.52,0.3168984]
[1727244768753,6.6431,150.53,150.52,0.3168984]
[1727244770956,6.2968,150.6,150.52,0.3168984]
[1727244771130,6.6427,150.54,150.52,0.3168984]
[1727244771656,6.6431,150.53,150.52,0.3168984]
[1727244777879,6.6423,150.55,150.52,0.3168984]
[1727244778580,16.6014,150.59,150.52,0.3168984]
[1727244778581,6.6419,150.56,150.52,0.3168984]
[1727244778749,6.6419,150.56,150.52,1.64564587]
[1727244779148,6.6414,150.57,150.52,8.28924587]
[1727244779367,6.6415,150.57,150.52,8.28884587]
[1727244779550,6.6415,150.57,150.52,6.9603984]
[1727244780258,6.4052,150.64,150.53,6.4869]
[1727244780461,6.6391,150.63,150.58,6.6408]
[1727244782287,6.6384,150.64,150.59,1.32801278]
[1727244782850,40.5000319,150.69,150.6,23.45091377]
[1727244782851,6.6374,150.66,150.6,23.45091377]
[1727244783075,6.6374,150.66,150.6,22.123]
[1727244783388,1.65967923,150.65,150.6,22.123]
[1727244783549,6.6379,150.65,150.6,22.123]
[1727244785375,0.2436319,150.69,150.6,15.6361]
[1727244785582,6.6393,150.62,150.6,15.6361]
[1727244785787,6.6392,150.62,150.6,15.6361]
[1727244786078,6.6387,150.64,150.6,15.6361]
[1727244786279,23.776884,150.67,150.6,15.6361]
[1727244786470,6.6388,150.63,150.6,15.6361]
[1727244787477,6.6396,150.61,150.6,15.6361]
[1727244787681,6.6392,150.62,150.6,15.6361]
[1727244789272,8.29920583,150.62,150.6,15.6361]
[1727244789569,6.6392,150.62,150.6,15.6361]
[1727244789772,23.776884,150.65,150.6,15.6361]
[1727244790074,6.6396,150.61,150.6,15.6361]
[1727244790860,6.6396,150.61,150.57,20.0]
[1727244791757,6.6392,150.62,150.57,20.0]
[1727244792282,23.776884,150.65,150.57,20.0]
[1727244792477,6.6392,150.62,150.57,20.0]
[1727244796083,6.6388,150.63,150.57,20.0]
[1727244797484,6.6388,150.63,150.58,15.9653]
[1727244798483,6.6379,150.65,150.58,26.80198251]
[1727244798859,6.6383,150.64,150.58,26.80198251]
[1727244799061,24.0205159,150.69,150.58,26.80198251]
[1727244799268,6.6379,150.65,150.58,26.80198251]
[1727244805982,6.637,150.67,150.61,20.0]
[1727244806167,6.637,150.67,150.62,1.3275705]
[1727244806987,6.637,150.67,150.61,20.0]
[1727244808786,6.637,150.67,150.62,1.32757305]
[1727244809088,24.0205159,150.69,150.61,20.0]
[1727244809290,0.2436319,150.69,150.61,20.0]
[1727244809498,6.8798319,150.69,150.61,20.0]
[1727244809699,0.2436319,150.69,150.65,22.3921]
[1727244810176,6.8797319,150.69,150.65,22.3921]
[1727244813797,6.6369,150.68,150.65,22.3921]
[1727244814001,6.6366,150.68,150.65,15.8002]
[1727244815192,6.8797319,150.69,150.65,15.8002]
[1727244815504,6.6366,150.68,150.65,15.8002]
[1727244817401,6.8797319,150.69,150.65,15.8002]
[1727244817702,6.6367,150.68,150.65,15.8002]
[1727244819502,0.2436319,150.69,150.65,15.8002]
[1727244819871,6.8799319,150.69,150.65,15.8002]
[1727244824182,0.2436319,150.69,150.65,15.8002]
[1727244824382,6.6366,150.68,150.65,15.8002]
[1727244827186,0.2436319,150.69,150.66,1.32743017]
[1727244827493,0.2436319,150.69,150.65,15.8002]
[1727244828300,0.2436319,150.69,150.66,1.32731384]
[1727244828618,0.2436319,150.69,150.65,15.8002]
[1727244829707,6.8797319,150.69,150.65,15.8002]
[1727244831306,0.2436319,150.69,150.66,1.32729022]
[1727244831611,0.2436319,150.69,150.65,15.8002]
[1727244834611,0.2436319,150.69,150.66,1.32720031]
[1727244834788,6.8798319,150.69,150.65,15.8002]
[1727244835511,0.2436319,150.69,150.65,15.8002]
[1727244837410,6.6366,150.68,150.65,15.8002]
[1727244839213,0.2436319,150.69,150.65,15.8002]
[1727244839386,6.8798319,150.69,150.65,15.8002]
[1727244841412,6.8798319,150.69,150.66,1.32738475]
[1727244841615,0.2436319,150.69,150.66,1.32738475]
[1727244841917,0.2436319,150.69,150.65,15.8002]
[1727244847920,0.2436319,150.69,150.66,42.55157109]
[1727244848287,0.2436319,150.69,150.67,20.0]
[1727244848602,6.8797319,150.69,150.66,6.6108]
[1727244848807,6.8797319,150.69,150.65,15.8002]
[1727244849305,6.6371,150.67,150.65,15.8002]
[1727244849625,6.6366,150.68,150.65,15.8002]
[1727244857948,1.65927921,150.67,150.61,15.4824]
[1727244858118,6.6375,150.66,150.61,15.4824]
[1727244862438,8.29742494,150.65,150.61,15.4824]
[1727244862645,6.6383,150.64,150.61,15.4824]
[1727244864425,1.90331816,150.69,150.61,15.4824]
[1727244864631,6.6388,150.63,150.61,15.4824]
[1727244864824,6.6392,150.62,150.61,15.4824]
[1727244865226,6.6392,150.62,150.58,20.0375]
[1727244865842,16.5924,150.68,150.59,1.3279446]
[1727244866145,6.6383,150.64,150.59,1.3279446]
[1727244866352,6.6383,150.64,150.59,23.776884]
[1727244867347,6.6383,150.64,150.58,20.0375]
[1727244868629,1.65974056,150.67,150.58,20.0375]
[1727244871358,40.371484,150.66,150.58,0.0375]
[1727244872648,6.6397,150.61,150.58,0.0375]